Workbook

Sheet MSS
B1: Antti Latva-Kokko | E1: 26.4.1996 Ilmajoki
B2: YKKÖSPESIS | E2: Runkosarja | L2: Runkosarja TOP-10 | Q2: Jatkosarjat | X2: SUOMENSARJA | AA2: Runkosarja | AH2: Runkosarja TOP-10 | AM2: Jatkosarjat
B3: Vuosi | C3: Sija | D3: Seura | E3: OTT | F3: KUN | G3: LÖI | H3: TOI | I3: KL | J3: KL-% | L3: LÖI | M3: TOI | N3: L+T | O3: KL | Q3: OTT | R3: KUN | S3: LÖI | T3: TOI | U3: KL | V3: KL-% | X3: Vuosi | Y3: Sija | Z3: Seura | AA3: OTT | AB3: KUN | AC3: LÖI | AD3: TOI | AE3: KL | AF3: KL-% | AH3: LÖI | AI3: TOI | AJ3: L+T | AK3: KL | AM3: OTT | AN3: KUN | AO3: LÖI | AP3: TOI | AQ3: KL | AR3: KL-%
X4: 2014 | Y4: 1. | Z4: Jalas | AA4: 13 | AB4: 0 | AC4: 4 | AD4: 4 | AE4: 29 | AF4: 46.0 % | AG4: 63 | AM4: 8 | AN4: 0 | AO4: 4 | AP4: 0 | AQ4: 10 | AR4: 23.8 % | AS4: 42
X5: 2015 | Y5: 1. | Z5: Jalas | AA5: 8 | AB5: 0 | AC5: 1 | AD5: 1 | AE5: 16 | AF5: 41.0 % | AG5: 39 | AM5: 9 | AN5: 0 | AO5: 3 | AP5: 9 | AQ5: 29 | AR5: 54.7 % | AS5: 53
X7: 2017 | Y7: 4. | Z7: KoU 2 | AA7: 12 | AB7: 0 | AC7: 4 | AD7: 2 | AE7: 18 | AF7: 39.1 % | AG7: 46 | AM7: 1 | AN7: 0 | AO7: 1 | AP7: 0 | AQ7: 1 | AR7: 20.0 % | AS7: 5
X9: 2021 | Y9: 2. | Z9: PuMu | AA9: 1 | AB9: 0 | AC9: 1 | AD9: 0 | AE9: 3 | AF9: 30.0 % | AG9: 10
B10: YHTEENSÄ | E10: =SUM(E4:E9) -> 0 | F10: =SUM(F4:F9) -> 0 | G10: =SUM(G4:G9) -> 0 | H10: =SUM(H4:H9) -> 0 | I10: =SUM(I4:I9) -> 0 | J10: 0.0 % | K10: =SUM(K4:K9) -> 0 | Q10: =SUM(Q4:Q9) -> 0 | R10: =SUM(R4:R9) -> 0 | S10: =SUM(S4:S9) -> 0 | T10: =SUM(T4:T9) -> 0 | U10: =SUM(U4:U9) -> 0 | V10: 0.0 % | W10: =SUM(W4:W9) -> 0 | X10: YHTEENSÄ | AA10: =SUM(AA4:AA9) -> 34 | AB10: =SUM(AB4:AB9) -> 0 | AC10: =SUM(AC4:AC9) -> 10 | AD10: =SUM(AD4:AD9) -> 7 | AE10: =SUM(AE4:AE9) -> 66 | AF10: =PRODUCT(AE10/AG10) -> 41.8 % | AG10: =SUM(AG4:AG9) -> 158 | AM10: =SUM(AM4:AM9) -> 18 | AN10: =SUM(AN4:AN9) -> 0 | AO10: =SUM(AO4:AO9) -> 8 | AP10: =SUM(AP4:AP9) -> 9 | AQ10: =SUM(AQ4:AQ9) -> 40 | AR10: =PRODUCT(AQ10/AS10) -> 40.0 % | AS10: =SUM(AS4:AS9) -> 100
B12: KAIKKI OTTELUT | E12: OTT | F12: KUN | G12: LÖI | H12: TOI | I12: KL | J12: KL-% | L12: ka/L | M12: ka/T | N12: ka/l+t | O12: ka/kl | R12: Seurat | T12: KoU = Koskenkorvan Urheilijat (1945), kasvattajaseura
B13: SUPERPESIS | E13: 0 | F13: 0 | G13: 0 | H13: 0 | I13: 0 | J13: 0.0 % | K13: 0 | L13: 0.00 | M13: 0.00 | N13: 0.00 | O13: 0.00 | T13: Jalas = Jalasjärven Jalas (1914)
B14: YKKÖSPESIS | E14: =PRODUCT(E10+Q10) -> 0 | F14: =PRODUCT(F10+R10) -> 0 | G14: =PRODUCT(G10+S10) -> 0 | H14: =PRODUCT(H10+T10) -> 0 | I14: =PRODUCT(I10+U10) -> 0 | J14: 0.0 % | K14: =PRODUCT(K10+W10) -> 0 | L14: 0.00 | M14: 0.00 | N14: 0.00 | O14: 0.00 | T14: PuMu = Helsingin Puna-Mustat (1941)
B15: SUOMENSARJA | E15: =PRODUCT(AA10+AM10) -> 52 | F15: =PRODUCT(AB10+AN10) -> 0 | G15: =PRODUCT(AC10+AO10) -> 18 | H15: =PRODUCT(AD10+AP10) -> 16 | I15: =PRODUCT(AE10+AQ10) -> 106 | J15: =PRODUCT(I15/K15) -> 41.1 % | K15: =PRODUCT(AG10+AS10) -> 258 | L15: =PRODUCT((F15+G15)/E15) -> 0.35 | M15: =PRODUCT(H15/E15) -> 0.31 | N15: =PRODUCT((F15+G15+H15)/E15) -> 0.65 | O15: =PRODUCT(I15/E15) -> 2.04
B16: YHTEENSÄ | E16: =SUM(E13:E15) -> 52 | F16: =SUM(F13:F15) -> 0 | G16: 18 | H16: 16 | I16: 106 | J16: =PRODUCT(I16/K16) -> 41.1 % | K16: =SUM(K13:K15) -> 258 | L16: =PRODUCT((F16+G16)/E16) -> 0.35 | M16: =PRODUCT(H16/E16) -> 0.31 | N16: =PRODUCT((F16+G16+H16)/E16) -> 0.65 | O16: =PRODUCT(I16/E16) -> 2.04
